[Event "32nd NATO Chess Championship"]
[Site "Tartu, Estonia"]
[Date "2022.06.29"]
[Round "4.34"]
[White "Allmann, Lauri"]
[Black "Stuhr, Finn"]
[Result "0-1"]
[TimeControl "90 min + 30 sec increment from move one"]
[WhiteFideId "2604868"]
[BlackFideId "1400789"]
[WhiteElo "1804"]
[BlackElo "1686"]

1. c4 {[%clk 01:30:50]} {[%emt 00:00:09]} c5 {[%clk 01:30:26]} {[%emt
00:00:34]} 2. Nc3 {[%clk 01:30:35]} {[%emt 00:00:47]} Nf6 {[%clk 01:30:23]}
{[%emt 00:00:31]} 3. g3 {[%clk 01:30:37]} {[%emt 00:00:28]} g6 {[%clk
01:30:32]} {[%emt 00:00:21]} 4. Bg2 {[%clk 01:30:49]} {[%emt 00:00:18]} Bg7
{[%clk 01:30:56]} {[%emt 00:00:06]} 5. Nf3 {[%clk 01:30:53]} {[%emt 00:00:26]}
Nc6 {[%clk 01:31:06]} {[%emt 00:00:20]} 6. O-O {[%clk 01:31:03]} {[%emt
00:00:19]} b6 {[%clk 01:31:22]} {[%emt 00:00:14]} 7. d4 {[%clk 01:27:21]}
{[%emt 00:04:13]} cxd4 {[%clk 01:31:33]} {[%emt 00:00:20]} 8. Nxd4 {[%clk
01:27:23]} {[%emt 00:00:27]} Bb7 {[%clk 01:31:55]} {[%emt 00:00:08]} 9. e3
{[%clk 01:17:46]} {[%emt 00:10:08]} Na5 {[%clk 01:29:20]} {[%emt 00:03:04]} 10.
b3 {[%clk 01:13:42]} {[%emt 00:04:35]} Bxg2 {[%clk 01:29:29]} {[%emt 00:00:20]}
11. Kxg2 {[%clk 01:14:06]} {[%emt 00:00:07]} O-O {[%clk 01:29:26]} {[%emt
00:00:33]} 12. Ba3 {[%clk 01:12:27]} {[%emt 00:02:09]} d6 {[%clk 01:25:54]}
{[%emt 00:01:39]} 13. Qf3 {[%clk 01:11:31]} {[%emt 00:03:47]} Qd7 {[%clk
01:23:50]} {[%emt 00:02:35]} 14. Rfd1 {[%clk 01:07:50]} {[%emt 00:04:12]} Rac8
{[%clk 01:23:59]} {[%emt 00:00:20]} 15. Rac1 {[%clk 01:05:28]} {[%emt
00:02:53]} Qb7 {[%clk 01:21:50]} {[%emt 00:02:38]} 16. Rd2 {[%clk 00:55:14]}
{[%emt 00:10:45]} Qxf3+ {[%clk 01:21:21]} {[%emt 00:00:58]} 17. Kxf3 {[%clk
00:53:45]} {[%emt 00:02:00]} a6 {[%clk 01:21:11]} {[%emt 00:00:40]} 18. Na4
{[%clk 00:50:06]} {[%emt 00:04:09]} Nd7 {[%clk 01:21:07]} {[%emt 00:00:33]} 19.
Nc3 {[%clk 00:46:21]} {[%emt 00:04:16]} Nc6 {[%clk 01:20:43]} {[%emt 00:00:54]}
20. Nd5 {[%clk 00:43:11]} {[%emt 00:03:40]} Rfe8 {[%clk 01:18:40]} {[%emt
00:02:31]} 21. Bb2 {[%clk 00:36:04]} {[%emt 00:07:39]} Nce5+ {[%clk 01:17:55]}
{[%emt 00:01:14]} 22. Ke2 {[%clk 00:35:44]} {[%emt 00:00:50]} e6 {[%clk
01:17:47]} {[%emt 00:00:37]} 23. Nf4 {[%clk 00:33:48]} {[%emt 00:02:27]} Nc5
{[%clk 01:15:32]} {[%emt 00:02:45]} 24. f3 {[%clk 00:32:44]} {[%emt 00:01:35]}
Ned7 {[%clk 01:15:26]} {[%emt 00:00:35]} 25. Nd3 {[%clk 00:28:56]} {[%emt
00:04:19]} Nxd3 {[%clk 01:14:46]} {[%emt 00:01:10]} 26. Kxd3 {[%clk 00:27:07]}
{[%emt 00:02:19]} e5 {[%clk 01:09:39]} {[%emt 00:05:37]} 27. Ne2 {[%clk
00:26:48]} {[%emt 00:00:48]} e4+ {[%clk 01:09:52]} {[%emt 00:00:17]} 28. fxe4
{[%clk 00:26:10]} {[%emt 00:01:08]} Nc5+ {[%clk 01:09:57]} {[%emt 00:00:25]} 29.
Kc2 {[%clk 00:26:29]} {[%emt 00:00:11]} Bxb2 {[%emt 00:01:09]} 30. Kxb2 {[%emt
00:01:21]} Rxe4 {[%clk 01:07:28]} {[%emt 00:00:30]} 31. Rxd6 {[%clk 00:25:53]}
{[%emt 00:01:06]} Rxe3 {[%emt 00:00:10]} 32. Rc2 {[%emt 00:01:58]} b5 {[%clk
01:01:48]} {[%emt 00:04:01]} 33. cxb5 {[%clk 00:23:22]} {[%emt 00:03:02]} axb5
{[%clk 01:00:59]} {[%emt 00:01:19]} 34. Rd5 {[%clk 00:19:17]} {[%emt 00:04:35]}
Na4+ {[%clk 00:57:14]} {[%emt 00:04:15]} 35. bxa4 {[%clk 00:18:22]} {[%emt
00:01:25]} Rxc2+ {[%clk 00:57:33]} {[%emt 00:00:11]} 36. Kxc2 {[%clk 00:18:34]}
{[%emt 00:00:18]} Rxe2+ {[%clk 00:57:55]} {[%emt 00:00:07]} 37. Rd2 {[%clk
00:18:48]} {[%emt 00:00:16]} Rxd2+ {[%clk 00:58:09]} {[%emt 00:00:16]} 38. Kxd2
{[%clk 00:19:11]} {[%emt 00:00:07]} bxa4 {[%clk 00:58:34]} {[%emt 00:00:06]} 39.
Kc3 {[%clk 00:19:32]} {[%emt 00:00:09]} f5 {[%clk 00:58:46]} {[%emt 00:00:17]}
40. Kb4 {[%clk 00:19:54]} {[%emt 00:00:08]} g5 {[%clk 00:59:03]} {[%emt
00:00:13]} 41. Kc5 {[%clk 00:17:53]} {[%emt 00:02:31]} Kf7 {[%clk 00:59:00]}
{[%emt 00:00:32]} 42. Kd5 {[%clk 00:17:16]} {[%emt 00:01:08]} Kf6 {[%clk
00:58:20]} {[%emt 00:01:09]} 43. h3 {[%clk 00:16:14]} {[%emt 00:01:32]} a3
{[%clk 00:58:18]} {[%emt 00:00:32]} 44. g4 {[%clk 00:11:00]} {[%emt 00:05:45]}
f4 {[%clk 00:58:27]} {[%emt 00:00:21]} 45. Ke4 {[%clk 00:10:12]} {[%emt
00:01:18]} Ke6 {[%clk 00:58:43]} {[%emt 00:00:13]} 46. h4 {[%clk 00:08:28]}
{[%emt 00:02:15]} gxh4 {[%clk 00:58:28]} {[%emt 00:00:45]} 47. Kxf4 {[%clk
00:08:35]} {[%emt 00:00:23]} Kd5 {[%clk 00:58:46]} {[%emt 00:00:11]} 48. g5
{[%clk 00:08:39]} {[%emt 00:00:26]} Kd4 {[%clk 00:58:50]} {[%emt 00:00:25]} 49.
Kg4 {[%clk 00:08:47]} {[%emt 00:00:24]} Kc3 {[%clk 00:59:12]} {[%emt 00:00:07]}
50. Kxh4 {[%clk 00:09:08]} {[%emt 00:00:09]} Kb2 {[%clk 00:59:25]} {[%emt
00:00:17]} 51. Kh5 {[%clk 00:09:29]} {[%emt 00:00:10]} Kxa2 {[%clk 00:59:46]}
{[%emt 00:00:09]} 52. Kh6 {[%clk 00:09:54]} {[%emt 00:00:05]} Kb2 {[%clk
00:58:28]} {[%emt 00:01:48]} 53. Kxh7 {[%clk 00:10:05]} {[%emt 00:00:18]} a2
{[%clk 00:58:50]} {[%emt 00:00:08]} 54. g6 {[%clk 00:10:25]} {[%emt 00:00:11]}
a1=Q {[%clk 00:58:56]} {[%emt 00:00:22]} 55. g7 {[%clk 00:10:31]} {[%emt
00:00:25]} Qh1+ {[%emt 00:01:03]} 56. Kg6 {[%emt 00:00:25]} Qd5 {[%clk
00:57:42]} {[%emt 00:00:16]} 57. Kh7 {[%clk 00:10:17]} {[%emt 00:00:44]} Qh5+
{[%clk 00:58:03]} {[%emt 00:00:09]} 58. Kg8 {[%clk 00:10:45]} {[%emt 00:00:03]}
Kc3 {[%clk 00:58:08]} {[%emt 00:00:20]} 59. Kf8 {[%clk 00:10:57]} {[%emt
00:00:23]} Qf5+ {[%clk 00:54:31]} {[%emt 00:04:03]} 60. Ke7 {[%clk 00:10:25]}
{[%emt 00:01:06]} Qg6 {[%clk 00:54:47]} {[%emt 00:00:13]} 61. Kf8 {[%clk
00:10:38]} {[%emt 00:00:18]} Qf6+ {[%clk 00:55:03]} {[%emt 00:00:11]} 62. Kg8
{[%clk 00:10:48]} {[%emt 00:00:22]} Kd4 {[%clk 00:55:17]} {[%emt 00:00:15]} 63.
Kh7 {[%clk 00:11:03]} {[%emt 00:00:16]} Qf5+ {[%clk 00:55:30]} {[%emt
00:00:17]} 64. Kh6 {[%clk 00:10:35]} {[%emt 00:00:58]} Qg4 {[%clk 00:55:50]}
{[%emt 00:00:10]} 65. Kh7 {[%clk 00:10:36]} {[%emt 00:00:30]} Qh5+ {[%clk
00:56:11]} {[%emt 00:00:09]} 66. Kg8 {[%clk 00:10:59]} {[%emt 00:00:07]} Ke5
{[%clk 00:56:01]} {[%emt 00:00:40]} 67. Kf8 {[%clk 00:11:20]} {[%emt 00:00:09]}
Qf5+ {[%clk 00:55:51]} {[%emt 00:00:39]} 68. Ke8 {[%clk 00:10:41]} {[%emt
00:01:10]} Qg6+ {[%emt 00:00:24]} 69. Kf8 {[%emt 00:00:21]} Qf6+ {[%clk
00:55:23]} {[%emt 00:00:12]} 70. Kg8 {[%clk 00:10:53]} {[%emt 00:00:18]} Ke6
{[%clk 00:52:25]} {[%emt 00:03:28]} 71. Kh7 {[%clk 00:10:55]} {[%emt 00:00:28]}
Qh4+ {[%clk 00:49:58]} {[%emt 00:00:13]} 72. Kg8 Qg5 {[%emt 00:02:48]} 73. Kh7
{[%clk 00:09:22]} {[%emt 00:02:00]} Kf7 {[%clk 00:50:19]} {[%emt 00:00:08]} 74.
g8=B+ {[%clk 00:09:24]} {[%emt 00:00:28]} Qxg8 {[%emt 00:00:07]} 0-1

[Event "32nd NATO Chess Championship"]
[Site "Tartu, Estonia"]
[Date "2022.06.29"]
[Round "4.35"]
[White "O`byrne, Daniel"]
[Black "Van Den Heuvel, Tonnie"]
[Result "0-1"]
[TimeControl "90 min + 30 sec increment from move one"]
[WhiteFideId "440825"]
[BlackFideId "1012924"]
[WhiteElo "1664"]
[BlackElo "1799"]

1. d4 {[%clk 01:30:58]} {[%emt 00:00:02]} Nf6 {[%clk 01:29:24]} {[%emt
00:01:36]} 2. Bf4 {[%clk 01:31:22]} {[%emt 00:00:06]} e6 {[%clk 01:28:53]}
{[%emt 00:01:01]} 3. e3 {[%clk 01:31:38]} {[%emt 00:00:14]} c5 {[%clk
01:27:39]} {[%emt 00:01:44]} 4. c3 {[%clk 01:31:50]} {[%emt 00:00:18]} Nc6
{[%clk 01:15:34]} {[%emt 00:12:35]} 5. Bd3 {[%clk 01:29:53]} {[%emt 00:02:27]}
a6 {[%clk 01:10:00]} {[%emt 00:06:05]} 6. Nf3 {[%clk 01:29:15]} {[%emt
00:01:07]} b5 {[%clk 01:10:11]} {[%emt 00:00:19]} 7. dxc5 {[%clk 01:29:02]}
{[%emt 00:00:43]} Bxc5 {[%clk 01:10:06]} {[%emt 00:00:36]} 8. O-O {[%clk
01:29:02]} {[%emt 00:00:29]} Qe7 {[%clk 01:09:31]} {[%emt 00:01:04]} 9. a3
{[%clk 01:27:23]} {[%emt 00:02:10]} e5 {[%clk 01:09:18]} {[%emt 00:00:42]} 10.
Nbd2 {[%clk 01:25:12]} {[%emt 00:02:42]} e4 {[%clk 01:09:01]} {[%emt 00:00:47]}
11. Nxe4 {[%clk 01:23:00]} {[%emt 00:02:41]} Nxe4 {[%clk 01:08:49]} {[%emt
00:00:42]} 12. Qc2 {[%clk 01:22:54]} {[%emt 00:00:37]} d5 {[%clk 01:08:02]}
{[%emt 00:01:16]} 13. Rad1 {[%clk 01:22:39]} {[%emt 00:00:45]} Bg4 {[%clk
01:06:55]} {[%emt 00:01:37]} 14. Be2 {[%clk 01:22:23]} {[%emt 00:00:47]} Rd8
{[%clk 01:05:40]} {[%emt 00:01:45]} 15. Nd4 {[%clk 01:21:03]} {[%emt 00:01:51]}
Nxd4 {[%clk 01:02:50]} {[%emt 00:03:19]} 16. exd4 {[%emt 00:01:06]} Bxe2 {[%emt
00:01:13]} 17. Qxe2 {[%clk 01:18:55]} {[%emt 00:00:19]} Bd6 {[%clk 01:03:07]}
{[%emt 00:00:14]} 18. Bxd6 {[%clk 01:16:04]} {[%emt 00:03:20]} Nxd6 {[%clk
01:01:28]} {[%emt 00:02:10]} 19. Qh5 {[%clk 01:15:07]} {[%emt 00:01:26]} O-O
{[%clk 01:01:53]} {[%emt 00:00:07]} 20. Qxd5 {[%clk 01:15:13]} {[%emt
00:00:24]} Nc4 {[%clk 01:02:18]} {[%emt 00:00:06]} 21. Qc6 {[%clk 01:15:00]}
{[%emt 00:00:41]} Nxb2 {[%clk 01:01:58]} {[%emt 00:00:51]} 22. Rb1 {[%clk
01:14:54]} {[%emt 00:00:35]} Nc4 {[%clk 01:02:21]} {[%emt 00:00:08]} 23. Qxa6
{[%clk 01:14:27]} {[%emt 00:00:57]} Nd2 {[%clk 00:58:05]} {[%emt 00:04:46]} 24.
Rfe1 {[%clk 01:14:11]} {[%emt 00:00:45]} Qg5 {[%clk 00:55:45]} {[%emt
00:02:51]} 25. Qxb5 {[%clk 01:09:03]} {[%emt 00:05:37]} Nf3+ {[%clk 00:55:42]}
{[%emt 00:00:33]} 26. Kh1 {[%clk 01:09:03]} {[%emt 00:00:30]} Qxb5 {[%clk
00:55:58]} {[%emt 00:00:14]} 0-1

[Event "32nd NATO Chess Championship"]
[Site "Tartu, Estonia"]
[Date "2022.06.29"]
[Round "4.41"]
[White "Ross, David C"]
[Black "Csizmadia, Csaba"]
[Result "1-0"]
[TimeControl "90 min + 30 sec increment from move one"]
[WhiteFideId "417572"]
[BlackFideId "763942"]
[WhiteElo "1677"]
[BlackElo "1875"]

1. e4 {[%clk 01:30:53]} {[%emt 00:00:06]} c5 {[%clk 01:30:55]} {[%emt
00:00:06]} 2. Nf3 {[%clk 01:30:18]} {[%emt 00:01:05]} e6 {[%clk 01:31:19]}
{[%emt 00:00:07]} 3. Bd3 {[%clk 01:30:33]} {[%emt 00:00:14]} Nc6 {[%clk
01:31:23]} {[%emt 00:00:26]} 4. c3 {[%clk 01:30:52]} {[%emt 00:00:11]} g6
{[%clk 01:31:33]} {[%emt 00:00:20]} 5. Bc2 {[%clk 01:30:57]} {[%emt 00:00:25]}
Bg7 {[%clk 01:30:45]} {[%emt 00:01:19]} 6. d4 {[%clk 01:28:04]} {[%emt
00:03:22]} cxd4 {[%clk 01:30:41]} {[%emt 00:00:33]} 7. cxd4 {[%clk 01:28:27]}
{[%emt 00:00:08]} d5 {[%clk 01:28:27]} {[%emt 00:02:45]} 8. e5 {[%clk
01:27:34]} {[%emt 00:01:22]} Qb6 {[%clk 01:28:44]} {[%emt 00:00:13]} 9. Nc3
{[%clk 01:24:58]} {[%emt 00:03:06]} Nge7 {[%clk 01:25:56]} {[%emt 00:03:17]} 10.
O-O {[%clk 01:20:35]} {[%emt 00:04:54]} Bd7 {[%clk 01:24:42]} {[%emt 00:01:45]}
11. a3 {[%clk 01:08:08]} {[%emt 00:12:56]} Na5 {[%clk 01:17:36]} {[%emt
00:07:36]} 12. Rb1 {[%clk 01:03:27]} {[%emt 00:05:11]} Rc8 {[%clk 01:17:10]}
{[%emt 00:00:55]} 13. Na4 {[%clk 00:57:04]} {[%emt 00:08:55]} Bxa4 {[%clk
01:14:17]} {[%emt 00:02:21]} 14. Bxa4+ {[%clk 00:56:32]} {[%emt 00:01:03]} Nac6
{[%clk 01:14:32]} {[%emt 00:00:15]} 15. Bf4 {[%clk 00:50:59]} {[%emt 00:06:03]}
O-O {[%clk 01:14:36]} {[%emt 00:00:26]} 16. Qd2 {[%clk 00:49:40]} {[%emt
00:01:49]} Nf5 {[%clk 01:14:32]} {[%emt 00:00:35]} 17. Bxc6 {[%clk 00:49:24]}
{[%emt 00:00:46]} Rxc6 {[%clk 01:14:40]} {[%emt 00:00:21]} 18. g4 {[%clk
00:49:12]} {[%emt 00:00:42]} Ne7 {[%emt 00:00:13]} 19. Bh6 {[%emt 00:03:16]}
Rfc8 {[%clk 01:11:33]} {[%emt 00:00:08]} 20. Bxg7 {[%clk 00:42:58]} {[%emt
00:06:43]} Kxg7 {[%clk 01:12:01]} {[%emt 00:00:04]} 21. Rbc1 {[%clk 00:41:48]}
{[%emt 00:01:39]} Qb3 {[%clk 01:10:58]} {[%emt 00:01:33]} 22. Rxc6 {[%clk
00:37:09]} {[%emt 00:05:08]} Rxc6 {[%clk 01:11:12]} {[%emt 00:00:16]} 23. Qf4
{[%clk 00:33:08]} {[%emt 00:04:32]} Ng8 {[%clk 01:11:28]} {[%emt 00:00:15]} 24.
Ng5 {[%clk 00:32:43]} {[%emt 00:00:54]} Rc7 {[%clk 01:11:42]} {[%emt 00:00:16]}
25. h4 {[%clk 00:21:52]} {[%emt 00:11:21]} h6 {[%clk 01:11:28]} {[%emt
00:00:43]} 26. Nf3 {[%clk 00:19:37]} {[%emt 00:02:46]} Qxb2 {[%clk 01:09:16]}
{[%emt 00:02:42]} 27. h5 {[%clk 00:17:15]} {[%emt 00:02:51]} Qxa3 {[%clk
01:08:47]} {[%emt 00:00:59]} 28. g5 {[%clk 00:15:54]} {[%emt 00:01:52]} Qe7
{[%clk 01:08:44]} {[%emt 00:00:33]} 29. Kg2 {[%clk 00:13:56]} {[%emt 00:02:27]}
hxg5 {[%clk 01:03:12]} {[%emt 00:06:02]} 30. Nxg5 {[%clk 00:12:30]} {[%emt
00:01:56]} Nh6 {[%clk 01:03:24]} {[%emt 00:00:18]} 31. Rh1 {[%clk 00:12:02]}
{[%emt 00:00:58]} Nf5 {[%clk 01:03:00]} {[%emt 00:00:55]} 32. hxg6 {[%clk
00:10:27]} {[%emt 00:02:05]} Kxg6 {[%clk 01:02:51]} {[%emt 00:00:38]} 33. Nf3
{[%clk 00:04:22]} {[%emt 00:06:35]} f6 {[%clk 01:03:01]} {[%emt 00:00:20]} 34.
Qg4+ {[%clk 00:04:09]} {[%emt 00:00:44]} Kf7 {[%clk 01:03:26]} {[%emt
00:00:04]} 35. Rh7+ {[%clk 00:04:15]} {[%emt 00:00:24]} Ke8 {[%clk 01:03:51]}
{[%emt 00:00:06]} 36. Rxe7+ {[%clk 00:03:30]} {[%emt 00:01:14]} Rxe7 {[%clk
01:03:43]} {[%emt 00:00:39]} 37. exf6 {[%clk 00:02:48]} {[%emt 00:01:12]} Rf7
{[%clk 01:04:00]} {[%emt 00:00:13]} 38. Qg8+ {[%clk 00:02:39]} {[%emt
00:00:39]} 1-0

[Event "32nd NATO Chess Championship"]
[Site "Tartu, Estonia"]
[Date "2022.06.29"]
[Round "4.42"]
[White "Korge, Kersti"]
[Black "Boudry, Rik"]
[Result "0-1"]
[TimeControl "90 min + 30 sec increment from move one"]
[WhiteFideId "4502310"]
[BlackFideId "237540"]
[WhiteElo "1864"]
[BlackElo "1468"]

1. b4 {[%clk 01:30:57]} {[%emt 00:00:03]} e5 {[%clk 01:26:16]} {[%emt
00:04:44]} 2. Bb2 {[%clk 01:31:22]} {[%emt 00:00:05]} Bxb4 {[%clk 01:26:05]}
{[%emt 00:00:41]} 3. Bxe5 {[%clk 01:31:45]} {[%emt 00:00:06]} Nf6 {[%clk
01:26:04]} {[%emt 00:00:31]} 4. c4 {[%clk 01:31:52]} {[%emt 00:00:23]} Nc6
{[%clk 01:26:10]} {[%emt 00:00:25]} 5. Bb2 {[%clk 01:32:13]} {[%emt 00:00:08]}
d6 {[%clk 01:25:24]} {[%emt 00:01:15]} 6. e3 {[%clk 01:32:29]} {[%emt
00:00:15]} O-O {[%emt 00:00:45]} 7. Nf3 {[%emt 00:00:09]} Be6 {[%clk 01:20:55]}
{[%emt 00:04:06]} 8. Be2 {[%clk 01:32:15]} {[%emt 00:00:44]} Re8 {[%clk
01:15:19]} {[%emt 00:06:05]} 9. O-O {[%clk 01:32:10]} {[%emt 00:00:36]} a6
{[%clk 01:12:45]} {[%emt 00:03:04]} 10. d4 {[%clk 01:30:29]} {[%emt 00:02:11]}
Bg4 {[%clk 01:08:58]} {[%emt 00:04:17]} 11. Qb3 {[%clk 01:28:50]} {[%emt
00:02:09]} Ba5 {[%clk 01:03:47]} {[%emt 00:05:41]} 12. Nc3 {[%clk 01:24:38]}
{[%emt 00:04:42]} Rb8 {[%clk 01:00:39]} {[%emt 00:03:37]} 13. c5 {[%clk
01:17:28]} {[%emt 00:07:41]} Na7 {[%clk 00:57:22]} {[%emt 00:03:47]} 14. Ng5
{[%clk 01:13:31]} {[%emt 00:04:26]} d5 {[%clk 00:52:05]} {[%emt 00:05:49]} 15.
Bxg4 {[%clk 01:13:21]} {[%emt 00:00:38]} Nxg4 {[%clk 00:52:18]} {[%emt
00:00:17]} 16. Qxd5 {[%clk 01:13:35]} {[%emt 00:00:17]} Re7 {[%clk 00:43:34]}
{[%emt 00:09:14]} 17. Nxh7 {[%clk 01:11:10]} {[%emt 00:02:54]} Bxc3 {[%clk
00:42:15]} {[%emt 00:01:49]} 18. Bxc3 {[%clk 01:11:15]} {[%emt 00:00:25]} Qxd5
{[%clk 00:42:29]} {[%emt 00:00:16]} 0-1

[Event "32nd NATO Chess Championship"]
[Site "Tartu, Estonia"]
[Date "2022.06.29"]
[Round "4.43"]
[White "Ntalampiras, Spyros"]
[Black "Steffers, Hendrik"]
[Result "1-0"]
[TimeControl "90 min + 30 sec increment from move one"]
[WhiteFideId "4227778"]
[BlackFideId "1010743"]
[WhiteElo "1815"]
[BlackElo "1838"]

1. e4 {[%clk 01:30:54]} {[%emt 00:00:05]} c5 {[%clk 01:30:46]} {[%emt
00:00:14]} 2. Nf3 {[%clk 01:31:19]} {[%emt 00:00:06]} e6 {[%clk 01:30:57]}
{[%emt 00:00:18]} 3. d4 {[%clk 01:31:43]} {[%emt 00:00:06]} cxd4 {[%clk
01:31:20]} {[%emt 00:00:08]} 4. Nxd4 {[%clk 01:32:09]} {[%emt 00:00:04]} a6
{[%clk 01:31:42]} {[%emt 00:00:08]} 5. Bd3 {[%clk 01:32:23]} {[%emt 00:00:15]}
Nf6 {[%clk 01:31:32]} {[%emt 00:00:40]} 6. Qe2 {[%clk 01:31:47]} {[%emt
00:01:06]} d6 {[%clk 01:30:43]} {[%emt 00:01:20]} 7. O-O {[%clk 01:31:27]}
{[%emt 00:00:50]} Qc7 {[%clk 01:30:10]} {[%emt 00:01:03]} 8. c4 {[%clk
01:31:02]} {[%emt 00:00:55]} Be7 {[%clk 01:28:07]} {[%emt 00:02:33]} 9. Nc3
{[%clk 01:27:56]} {[%emt 00:03:37]} O-O {[%clk 01:28:12]} {[%emt 00:00:25]} 10.
f4 {[%clk 01:28:13]} {[%emt 00:00:13]} Nc6 {[%clk 01:25:17]} {[%emt 00:03:25]}
11. Nxc6 {[%clk 01:24:46]} {[%emt 00:03:58]} bxc6 {[%clk 01:24:43]} {[%emt
00:01:03]} 12. Be3 {[%clk 01:24:19]} {[%emt 00:00:56]} h5 {[%clk 01:10:17]}
{[%emt 00:14:56]} 13. h3 {[%clk 01:17:54]} {[%emt 00:06:56]} Bb7 {[%clk
01:06:38]} {[%emt 00:04:09]} 14. g4 {[%clk 01:10:01]} {[%emt 00:08:22]} hxg4
{[%clk 01:04:14]} {[%emt 00:02:54]} 15. hxg4 {[%clk 01:08:43]} {[%emt
00:01:49]} g6 {[%clk 01:04:11]} {[%emt 00:00:32]} 16. Rf2 {[%clk 00:56:37]}
{[%emt 00:12:36]} Kg7 {[%clk 01:03:46]} {[%emt 00:00:56]} 17. Raf1 {[%clk
00:54:59]} {[%emt 00:02:07]} Rh8 {[%clk 01:00:15]} {[%emt 00:04:01]} 18. g5
{[%clk 00:54:05]} {[%emt 00:01:24]} Nd7 {[%clk 00:58:13]} {[%emt 00:02:33]} 19.
Bd4+ {[%clk 00:49:28]} {[%emt 00:05:06]} f6 {[%clk 00:57:48]} {[%emt 00:00:55]}
20. Qg4 {[%clk 00:43:35]} {[%emt 00:06:23]} Kf7 {[%clk 00:52:27]} {[%emt
00:05:52]} 21. gxf6 {[%clk 00:35:55]} {[%emt 00:08:10]} e5 {[%clk 00:44:48]}
{[%emt 00:08:09]} 22. fxe5 {[%clk 00:35:07]} {[%emt 00:01:17]} dxe5 {[%clk
00:42:12]} {[%emt 00:03:06]} 23. fxe7+ {[%clk 00:35:00]} {[%emt 00:00:37]} Kxe7
{[%clk 00:42:18]} {[%emt 00:00:24]} 24. Rf7+ {[%clk 00:32:14]} {[%emt
00:03:16]} Kd8 {[%clk 00:42:47]} {[%emt 00:00:01]} 25. Be3 {[%clk 00:28:34]}
{[%emt 00:04:10]} Qd6 {[%clk 00:42:49]} {[%emt 00:00:28]} 26. Rd1 {[%clk
00:26:59]} {[%emt 00:02:04]} Bc8 {[%clk 00:38:15]} {[%emt 00:05:04]} 27. Bc2
{[%clk 00:26:00]} {[%emt 00:01:28]} Qc7 {[%clk 00:38:30]} {[%emt 00:00:16]} 28.
Bg5+ {[%clk 00:26:08]} {[%emt 00:00:22]} Ke8 {[%clk 00:38:49]} {[%emt
00:00:12]} 29. Qe6# {[%emt 00:00:14]} 1-0

[Event "32nd NATO Chess Championship"]
[Site "Tartu, Estonia"]
[Date "2022.06.30"]
[Round "5.1"]
[White "Wang, Eigen"]
[Black "Pavlidis, Anastasios"]
[Result "0-1"]
[TimeControl "90 min + 30 sec increment from move one"]
[BlackTitle "IM"]
[WhiteFideId "2008777"]
[BlackFideId "4208404"]
[WhiteElo "2293"]
[BlackElo "2296"]

1. d4 {[%clk 01:30:42]} {[%emt 00:00:17]} d5 {[%clk 01:30:30]} {[%emt
00:00:29]} 2. Nf3 {[%clk 01:30:23]} {[%emt 00:00:50]} e6 {[%clk 01:30:14]}
{[%emt 00:00:46]} 3. c4 {[%clk 01:29:56]} {[%emt 00:00:58]} h6 {[%clk
01:30:04]} {[%emt 00:00:39]} 4. e3 {[%clk 01:28:02]} {[%emt 00:02:25]} Nf6
{[%clk 01:26:17]} {[%emt 00:04:16]} 5. Nbd2 {[%clk 01:27:55]} {[%emt 00:00:38]}
c5 {[%clk 01:16:48]} {[%emt 00:09:58]} 6. dxc5 {[%clk 01:24:53]} {[%emt
00:03:33]} Bxc5 {[%clk 01:16:07]} {[%emt 00:01:10]} 7. a3 {[%clk 01:24:07]}
{[%emt 00:01:17]} O-O {[%clk 01:12:42]} {[%emt 00:03:54]} 8. Be2 {[%clk
01:21:33]} {[%emt 00:03:05]} Re8 {[%clk 01:05:02]} {[%emt 00:08:09]} 9. O-O
{[%clk 01:15:58]} {[%emt 00:06:07]} e5 {[%clk 01:00:28]} {[%emt 00:05:02]} 10.
b4 {[%clk 01:15:27]} {[%emt 00:01:03]} Bd6 {[%clk 00:57:08]} {[%emt 00:03:48]}
11. Bb2 {[%clk 01:06:21]} {[%emt 00:09:37]} a5 {[%clk 00:43:01]} {[%emt
00:14:36]} 12. cxd5 {[%clk 00:59:21]} {[%emt 00:07:31]} e4 {[%clk 00:40:08]}
{[%emt 00:03:21]} 13. Nd4 {[%clk 00:58:19]} {[%emt 00:01:34]} axb4 {[%clk
00:38:37]} {[%emt 00:02:01]} 14. Nc4 {[%clk 00:51:43]} {[%emt 00:07:07]} Bf8
{[%clk 00:34:14]} {[%emt 00:04:51]} 15. d6 {[%clk 00:43:14]} {[%emt 00:08:59]}
Bd7 {[%clk 00:31:57]} {[%emt 00:02:47]} 16. axb4 {[%clk 00:41:20]} {[%emt
00:02:25]} Rxa1 {[%clk 00:32:16]} {[%emt 00:00:11]} 17. Qxa1 {[%clk 00:36:15]}
{[%emt 00:05:35]} b5 {[%clk 00:30:57]} {[%emt 00:01:49]} 18. Na5 {[%clk
00:24:05]} {[%emt 00:12:41]} Bxd6 {[%clk 00:31:03]} {[%emt 00:00:22]} 19. Rd1
{[%clk 00:23:39]} {[%emt 00:00:57]} Ng4 {[%clk 00:21:03]} {[%emt 00:10:30]} 20.
h3 {[%clk 00:20:19]} {[%emt 00:03:50]} Nxf2 {[%clk 00:16:47]} {[%emt 00:04:47]}
21. Kxf2 {[%clk 00:20:32]} {[%emt 00:00:16]} Qh4+ {[%clk 00:16:54]} {[%emt
00:00:22]} 22. Kf1 {[%clk 00:19:12]} {[%emt 00:01:51]} Bg3 {[%clk 00:13:37]}
{[%emt 00:03:46]} 23. Bxb5 {[%clk 00:11:47]} {[%emt 00:07:56]} Qf6+ {[%clk
00:13:41]} {[%emt 00:00:25]} 24. Kg1 {[%clk 00:09:31]} {[%emt 00:02:47]} Qf2+
{[%clk 00:14:04]} {[%emt 00:00:06]} 25. Kh1 {[%clk 00:09:59]} {[%emt 00:00:03]}
Bxh3 {[%clk 00:14:21]} {[%emt 00:00:12]} 26. Rg1 {[%clk 00:06:48]} {[%emt
00:03:41]} Re5 {[%clk 00:14:06]} {[%emt 00:00:45]} 27. Be2 {[%clk 00:06:14]}
{[%emt 00:01:05]} Rg5 {[%clk 00:10:44]} {[%emt 00:03:52]} 28. Qf1 {[%clk
00:05:17]} {[%emt 00:01:27]} Bg4 {[%clk 00:10:51]} {[%emt 00:00:23]} 29. Bxg4
{[%clk 00:02:00]} {[%emt 00:03:48]} Rxg4 {[%clk 00:11:15]} {[%emt 00:00:05]} 30.
Nf5 {[%clk 00:01:38]} {[%emt 00:00:52]} Rg5 {[%clk 00:11:19]} {[%emt 00:00:26]}
31. Qd1 {[%clk 00:00:31]} {[%emt 00:01:38]} Qxf5 {[%clk 00:08:56]} {[%emt
00:02:52]} 0-1